[Event "Early-Titled-Tuesday-Blitz-February-06-2024"]
[Site "Chess.com"]
[Date "2024.02.06"]
[Round "1"]
[White "platy3"]
[Black "LeoLV10"]
[Result "1-0"]
[WhiteElo "2919"]
[BlackElo "2498"]
[TimeControl "180+1"]
[EndTime "8:07:48 PST"]
[Termination "platy3 won by checkmate"]

1. e4 {[%clk 0:03:00.9]} 1... c6 {[%clk 0:02:58.5]} 2. Nf3 {[%clk 0:02:59.2]}
2... d5 {[%clk 0:02:59.4]} 3. Nc3 {[%clk 0:02:59.4]} 3... Bg4 {[%clk 0:02:58.7]}
4. h3 {[%clk 0:02:58.3]} 4... Bxf3 {[%clk 0:02:58.8]} 5. Qxf3 {[%clk 0:02:59.1]}
5... e6 {[%clk 0:02:59]} 6. d3 {[%clk 0:02:58.3]} 6... Nd7 {[%clk 0:02:59.2]} 7.
g3 {[%clk 0:02:57.9]} 7... Ne5 {[%clk 0:02:54.2]} 8. Qe2 {[%clk 0:02:56.6]} 8...
Bb4 {[%clk 0:02:47.7]} 9. Bd2 {[%clk 0:02:52.9]} 9... d4 {[%clk 0:02:44.8]} 10.
Nb1 {[%clk 0:02:52.3]} 10... Qb6 {[%clk 0:02:44.9]} 11. f4 {[%clk 0:02:06.6]}
11... Nd7 {[%clk 0:02:44.1]} 12. c3 {[%clk 0:02:01.1]} 12... dxc3 {[%clk
0:02:42.6]} 13. Nxc3 {[%clk 0:01:56.2]} 13... Ne7 {[%clk 0:02:36.6]} 14. Bg2
{[%clk 0:01:55.2]} 14... Rd8 {[%clk 0:02:31.7]} 15. a3 {[%clk 0:01:52.4]} 15...
Bc5 {[%clk 0:02:12.9]} 16. b4 {[%clk 0:01:47.2]} 16... Bd4 {[%clk 0:02:10.9]}
17. Rc1 {[%clk 0:01:32.1]} 17... e5 {[%clk 0:02:05.2]} 18. f5 {[%clk 0:01:28.7]}
18... c5 {[%clk 0:01:35.3]} 19. Bf3 {[%clk 0:01:05.8]} 19... cxb4 {[%clk
0:01:32.5]} 20. axb4 {[%clk 0:01:05.4]} 20... O-O {[%clk 0:01:30.3]} 21. Kf1
{[%clk 0:01:02.8]} 21... Rc8 {[%clk 0:01:06.8]} 22. Kg2 {[%clk 0:01:01.6]} 22...
a6 {[%clk 0:00:55.1]} 23. g4 {[%clk 0:00:33.2]} 23... Qxb4 {[%clk 0:00:48.5]}
24. Nd5 {[%clk 0:00:32.6]} 24... Qd6 {[%clk 0:00:48.6]} 25. Ne3 {[%clk
0:00:30.6]} 25... b5 {[%clk 0:00:41.5]} 26. g5 {[%clk 0:00:29.9]} 26... Rfd8
{[%clk 0:00:33.9]} 27. h4 {[%clk 0:00:28.1]} 27... Nc5 {[%clk 0:00:30.2]} 28.
Rhd1 {[%clk 0:00:26.3]} 28... Nb3 {[%clk 0:00:26.1]} 29. Rxc8 {[%clk 0:00:25.9]}
29... Rxc8 {[%clk 0:00:27]} 30. f6 {[%clk 0:00:08.5]} 30... Ng6 {[%clk
0:00:25.1]} 31. Nf5 {[%clk 0:00:07.8]} 31... Qe6 {[%clk 0:00:18.2]} 32. h5
{[%clk 0:00:07.6]} 32... Nxd2 {[%clk 0:00:17.3]} 33. hxg6 {[%clk 0:00:06]} 33...
gxf6 {[%clk 0:00:13.1]} 34. Qxd2 {[%clk 0:00:03.6]} 34... hxg6 {[%clk
0:00:12.4]} 35. Nh6+ {[%clk 0:00:04.1]} 35... Kg7 {[%clk 0:00:12.8]} 36. Bg4
{[%clk 0:00:04.8]} 36... f5 {[%clk 0:00:12]} 37. exf5 {[%clk 0:00:05.2]} 37...
Qc6+ {[%clk 0:00:10.3]} 38. Bf3 {[%clk 0:00:05.6]} 38... Qd7 {[%clk 0:00:09.6]}
39. f6+ {[%clk 0:00:05.8]} 39... Kf8 {[%clk 0:00:09.7]} 40. Rc1 {[%clk
0:00:06.4]} 40... Bc5 {[%clk 0:00:08]} 41. Qc2 {[%clk 0:00:04.5]} 41... Qd4
{[%clk 0:00:08.2]} 42. Qa2 {[%clk 0:00:02.8]} 42... Rc7 {[%clk 0:00:06.5]} 43.
Qd5 {[%clk 0:00:03.5]} 43... Qf2+ {[%clk 0:00:05.9]} 44. Kh3 {[%clk 0:00:04.1]}
44... Qe3 {[%clk 0:00:03.7]} 45. Qd8# {[%clk 0:00:03.8]} 1-0

[Event "Early-Titled-Tuesday-Blitz-February-06-2024"]
[Site "Chess.com"]
[Date "2024.02.06"]
[Round "1"]
[White "chess_blitz00"]
[Black "js20000"]
[Result "1-0"]
[WhiteElo "2484"]
[BlackElo "2836"]
[TimeControl "180+1"]
[EndTime "8:07:48 PST"]
[Termination "chess_blitz00 won by resignation"]

1. e4 {[%clk 0:03:00.9]} 1... c6 {[%clk 0:02:57.6]} 2. d4 {[%clk 0:02:59]} 2...
d5 {[%clk 0:02:58.5]} 3. Nc3 {[%clk 0:02:53.8]} 3... dxe4 {[%clk 0:02:57.1]} 4.
Nxe4 {[%clk 0:02:54.7]} 4... Nd7 {[%clk 0:02:57.1]} 5. Bd3 {[%clk 0:02:50.7]}
5... Ngf6 {[%clk 0:02:56.8]} 6. Nxf6+ {[%clk 0:02:50.7]} 6... Nxf6 {[%clk
0:02:56]} 7. c3 {[%clk 0:02:48.4]} 7... Bg4 {[%clk 0:02:53.8]} 8. Qb3 {[%clk
0:02:45.7]} 8... Qb6 {[%clk 0:02:51.7]} 9. Be3 {[%clk 0:02:38]} 9... e6 {[%clk
0:02:50.4]} 10. h3 {[%clk 0:02:34.4]} 10... Bh5 {[%clk 0:02:49.6]} 11. Ne2
{[%clk 0:02:32.8]} 11... Bg6 {[%clk 0:02:46.8]} 12. Nf4 {[%clk 0:02:22.9]} 12...
Bd6 {[%clk 0:02:44.9]} 13. Nxg6 {[%clk 0:02:18.9]} 13... hxg6 {[%clk 0:02:45.8]}
14. O-O-O {[%clk 0:02:11.8]} 14... Nd5 {[%clk 0:02:44.9]} 15. Kb1 {[%clk
0:01:57.8]} 15... O-O {[%clk 0:02:34.2]} 16. Qxb6 {[%clk 0:01:55.1]} 16... axb6
{[%clk 0:02:33.6]} 17. h4 {[%clk 0:01:52.1]} 17... Bf4 {[%clk 0:02:31.4]} 18.
Bxf4 {[%clk 0:00:55]} 18... Nxf4 {[%clk 0:02:32.3]} 19. Be4 {[%clk 0:00:40.9]}
19... b5 {[%clk 0:02:29.6]} 20. g3 {[%clk 0:00:39.4]} 20... Nh5 {[%clk
0:02:29.5]} 21. a3 {[%clk 0:00:25.6]} 21... Nf6 {[%clk 0:02:29]} 22. Bf3 {[%clk
0:00:25.2]} 22... Rfd8 {[%clk 0:02:29]} 23. g4 {[%clk 0:00:24.4]} 23... Kf8
{[%clk 0:02:21.9]} 24. g5 {[%clk 0:00:24.6]} 24... Nd5 {[%clk 0:02:21.8]} 25.
Bxd5 {[%clk 0:00:18.1]} 25... Rxd5 {[%clk 0:02:22.1]} 26. f4 {[%clk 0:00:18.3]}
26... Rad8 {[%clk 0:02:20.3]} 27. Kc2 {[%clk 0:00:17.2]} 27... b6 {[%clk
0:02:20]} 28. h5 {[%clk 0:00:14.2]} 28... gxh5 {[%clk 0:02:19.9]} 29. Rxh5
{[%clk 0:00:15.1]} 29... Ke7 {[%clk 0:02:19.1]} 30. Rh7 {[%clk 0:00:15.4]} 30...
g6 {[%clk 0:02:19.3]} 31. Rhh1 {[%clk 0:00:14.3]} 31... R8d7 {[%clk 0:02:13.1]}
32. Rhe1 {[%clk 0:00:11.5]} 32... Rd8 {[%clk 0:02:13]} 33. Re5 {[%clk
0:00:10.8]} 33... Rh8 {[%clk 0:02:07.6]} 34. Rxd5 {[%clk 0:00:10.5]} 34... cxd5
{[%clk 0:02:07.4]} 35. Rd2 {[%clk 0:00:09.4]} 35... Rh3 {[%clk 0:02:06.5]} 36.
Rf2 {[%clk 0:00:09.3]} 36... Kd6 {[%clk 0:02:07.1]} 37. Kb3 {[%clk 0:00:09.5]}
37... Kc6 {[%clk 0:02:07.4]} 38. Kb4 {[%clk 0:00:09.2]} 38... Rh4 {[%clk
0:02:01.6]} 39. b3 {[%clk 0:00:08.5]} 39... Rg4 {[%clk 0:01:59.9]} 40. Rf1
{[%clk 0:00:08.6]} 40... Rg2 {[%clk 0:01:57.1]} 41. Rf3 {[%clk 0:00:08.7]} 41...
Rc2 {[%clk 0:01:53.7]} 42. Rf1 {[%clk 0:00:08.6]} 42... Kb7 {[%clk 0:01:53.1]}
43. Rf3 {[%clk 0:00:08]} 43... Ka6 {[%clk 0:01:53.2]} 44. Rf1 {[%clk 0:00:08.2]}
44... Kb7 {[%clk 0:01:52.1]} 45. Rf3 {[%clk 0:00:08.4]} 45... Kc6 {[%clk
0:01:52.5]} 46. Rf1 {[%clk 0:00:09]} 46... Rb2 {[%clk 0:01:52.2]} 47. Rf3 {[%clk
0:00:09.3]} 47... Kd7 {[%clk 0:01:52.2]} 48. Rf1 {[%clk 0:00:09.5]} 48... Ke7
{[%clk 0:01:50.4]} 49. Rf3 {[%clk 0:00:10.1]} 49... f6 {[%clk 0:01:50.3]} 50.
gxf6+ {[%clk 0:00:10]} 50... Kxf6 {[%clk 0:01:51.2]} 51. a4 {[%clk 0:00:08.2]}
51... bxa4 {[%clk 0:01:51.1]} 52. Kxa4 {[%clk 0:00:09.1]} 52... Kf5 {[%clk
0:01:48]} 53. b4 {[%clk 0:00:08.9]} 53... Ke4 {[%clk 0:01:47.7]} 54. Rg3 {[%clk
0:00:08.7]} 54... Kf5 {[%clk 0:01:46.1]} 55. Kb5 {[%clk 0:00:06.3]} 55... Rf2
{[%clk 0:01:40.5]} 56. Kxb6 {[%clk 0:00:06.7]} 56... Rxf4 {[%clk 0:01:40.7]} 57.
b5 {[%clk 0:00:05.4]} 57... g5 {[%clk 0:01:40.6]} 58. Kc7 {[%clk 0:00:04.8]}
58... g4 {[%clk 0:01:40.6]} 59. b6 {[%clk 0:00:05.2]} 59... Kg5 {[%clk
0:01:40.8]} 60. b7 {[%clk 0:00:05.3]} 60... Rf7+ {[%clk 0:01:41.3]} 61. Kb6
{[%clk 0:00:04.9]} 61... Rf8 {[%clk 0:01:41.4]} 62. Ka7 {[%clk 0:00:05.5]} 62...
Rf7 {[%clk 0:01:41.7]} 63. Ka8 {[%clk 0:00:06.1]} 63... Kh4 {[%clk 0:01:38.2]}
64. Rxg4+ {[%clk 0:00:04.2]} 64... Kxg4 {[%clk 0:01:37.1]} 65. b8=Q {[%clk
0:00:05.1]} 65... Rf3 {[%clk 0:01:31.6]} 66. Qe5 {[%clk 0:00:05.4]} 66... Rxc3
{[%clk 0:01:24.8]} 67. Qxe6+ {[%clk 0:00:05.8]} 67... Kf4 {[%clk 0:01:24.8]} 68.
Qxd5 {[%clk 0:00:06.7]} 68... Re3 {[%clk 0:01:22.8]} 69. Qd6+ {[%clk 0:00:06.9]}
69... Kf5 {[%clk 0:01:22.9]} 70. Kb7 {[%clk 0:00:07.2]} 70... Rd3 {[%clk
0:01:22.5]} 71. d5 {[%clk 0:00:07.4]} 71... Re3 {[%clk 0:01:21.3]} 72. Kc7
{[%clk 0:00:07.9]} 72... Re1 {[%clk 0:01:19.6]} 73. Qd7+ {[%clk 0:00:08.2]}
73... Kf6 {[%clk 0:01:19.7]} 74. d6 {[%clk 0:00:08.2]} 74... Re2 {[%clk
0:01:19.4]} 75. Kd8 {[%clk 0:00:08.2]} 75... Re1 {[%clk 0:01:18.6]} 76. Qe7+
{[%clk 0:00:08.6]} 1-0

[Event "Early-Titled-Tuesday-Blitz-February-06-2024"]
[Site "Chess.com"]
[Date "2024.02.06"]
[Round "1"]
[White "vladoboch"]
[Black "Susal_De_Silva"]
[Result "1-0"]
[WhiteElo "2450"]
[BlackElo "2766"]
[TimeControl "180+1"]
[EndTime "8:07:48 PST"]
[Termination "vladoboch won by checkmate"]

1. e4 {[%clk 0:03:00.9]} 1... e5 {[%clk 0:02:57.6]} 2. Nf3 {[%clk 0:03:00.7]}
2... Nc6 {[%clk 0:02:56.9]} 3. Bc4 {[%clk 0:03:01.2]} 3... Nf6 {[%clk
0:02:56.3]} 4. d3 {[%clk 0:03:00]} 4... h6 {[%clk 0:02:55.9]} 5. c3 {[%clk
0:02:57.4]} 5... d6 {[%clk 0:02:56.2]} 6. O-O {[%clk 0:02:56.9]} 6... g5 {[%clk
0:02:56.7]} 7. Nbd2 {[%clk 0:02:57.3]} 7... Bg7 {[%clk 0:02:57.1]} 8. a4 {[%clk
0:02:55.4]} 8... a5 {[%clk 0:02:56.5]} 9. Bb3 {[%clk 0:02:51.4]} 9... g4 {[%clk
0:02:53.5]} 10. Ne1 {[%clk 0:02:51.3]} 10... h5 {[%clk 0:02:54.1]} 11. f3 {[%clk
0:02:48.3]} 11... Be6 {[%clk 0:02:52.1]} 12. Nc4 {[%clk 0:02:33.4]} 12... d5
{[%clk 0:02:47.2]} 13. Ne3 {[%clk 0:02:28.5]} 13... d4 {[%clk 0:02:31.9]} 14.
Bxe6 {[%clk 0:02:18.8]} 14... fxe6 {[%clk 0:02:32.8]} 15. Nc4 {[%clk 0:02:15.7]}
15... Qe7 {[%clk 0:02:24.4]} 16. cxd4 {[%clk 0:02:09.4]} 16... Nxd4 {[%clk
0:02:25.3]} 17. Be3 {[%clk 0:01:57.5]} 17... O-O-O {[%clk 0:02:23.7]} 18. Nxe5
{[%clk 0:01:50.7]} 18... Bh6 {[%clk 0:01:38.1]} 19. Bxh6 {[%clk 0:01:45.7]}
19... Rxh6 {[%clk 0:01:37.4]} 20. Rc1 {[%clk 0:01:30.9]} 20... Rg8 {[%clk
0:01:28.6]} 21. Qd2 {[%clk 0:01:28.2]} 21... Qg7 {[%clk 0:01:19.7]} 22. Qxa5
{[%clk 0:01:24.6]} 22... Kb8 {[%clk 0:01:09.2]} 23. Rc4 {[%clk 0:00:30.9]} 23...
Ne2+ {[%clk 0:00:53.5]} 24. Kh1 {[%clk 0:00:29.9]} 24... h4 {[%clk 0:00:47.2]}
25. fxg4 {[%clk 0:00:19.4]} 25... Ng3+ {[%clk 0:00:45.9]} 26. Kg1 {[%clk
0:00:15.8]} 26... Nxf1 {[%clk 0:00:44.5]} 27. Rb4 {[%clk 0:00:04.7]} 27... Nxg4
{[%clk 0:00:26.3]} 28. Nc6+ {[%clk 0:00:04.8]} 28... Kc8 {[%clk 0:00:26.6]} 29.
Qa8+ {[%clk 0:00:05.3]} 29... Kd7 {[%clk 0:00:27.1]} 30. Qxb7 {[%clk 0:00:06.2]}
30... Nge3 {[%clk 0:00:17.6]} 31. Rd4+ {[%clk 0:00:06.3]} 31... Nd5 {[%clk
0:00:05.3]} 32. exd5 {[%clk 0:00:05.1]} 32... e5 {[%clk 0:00:06]} 33. Re4 {[%clk
0:00:02.4]} 33... Rg6 {[%clk 0:00:04]} 34. Nxe5+ {[%clk 0:00:02.7]} 34... Ke7
{[%clk 0:00:02.7]} 35. Qxc7+ {[%clk 0:00:03.2]} 35... Kf6 {[%clk 0:00:02.8]} 36.
Qd6+ {[%clk 0:00:03]} 36... Kf5 {[%clk 0:00:03]} 37. Nxg6 {[%clk 0:00:03]} 37...
Qxg6 {[%clk 0:00:02.8]} 38. Qf4# {[%clk 0:00:03.8]} 1-0

[Event "Early-Titled-Tuesday-Blitz-February-06-2024"]
[Site "Chess.com"]
[Date "2024.02.06"]
[Round "1"]
[White "Casper"]
[Black "ViIIagra"]
[Result "1-0"]
[WhiteElo "2523"]
[BlackElo "2953"]
[TimeControl "180+1"]
[EndTime "8:07:49 PST"]
[Termination "Casper won by resignation"]

1. Nf3 {[%clk 0:02:58.3]} 1... b6 {[%clk 0:02:58.9]} 2. e4 {[%clk 0:02:56.9]}
2... Bb7 {[%clk 0:02:56]} 3. Nc3 {[%clk 0:02:57.2]} 3... e6 {[%clk 0:02:56.1]}
4. d4 {[%clk 0:02:56.8]} 4... Bb4 {[%clk 0:02:55.7]} 5. Bd3 {[%clk 0:02:56.9]}
5... Nf6 {[%clk 0:02:55.5]} 6. Qe2 {[%clk 0:02:56.2]} 6... d5 {[%clk 0:02:50.8]}
7. exd5 {[%clk 0:02:54.1]} 7... Qxd5 {[%clk 0:02:42.5]} 8. O-O {[%clk
0:02:54.3]} 8... Qh5 {[%clk 0:02:41.8]} 9. Ne4 {[%clk 0:02:47.1]} 9... Nbd7
{[%clk 0:02:36.9]} 10. c3 {[%clk 0:02:43.5]} 10... Bd6 {[%clk 0:02:33.4]} 11.
Nxd6+ {[%clk 0:02:34.2]} 11... cxd6 {[%clk 0:02:34.3]} 12. Bf4 {[%clk
0:02:33.3]} 12... Bxf3 {[%clk 0:02:30.6]} 13. Qxf3 {[%clk 0:02:34.2]} 13... Qxf3
{[%clk 0:02:29.2]} 14. gxf3 {[%clk 0:02:35.1]} 14... Ke7 {[%clk 0:02:29.7]} 15.
a4 {[%clk 0:02:26.5]} 15... Nd5 {[%clk 0:02:17.1]} 16. Bd2 {[%clk 0:02:25.1]}
16... a5 {[%clk 0:01:54.8]} 17. Rfe1 {[%clk 0:02:20.2]} 17... Rac8 {[%clk
0:01:52.5]} 18. f4 {[%clk 0:02:04.3]} 18... Kf6 {[%clk 0:01:41.4]} 19. c4 {[%clk
0:01:39.7]} 19... Nb4 {[%clk 0:01:40.3]} 20. Bxb4 {[%clk 0:01:38.7]} 20... axb4
{[%clk 0:01:41.2]} 21. a5 {[%clk 0:01:39.3]} 21... bxa5 {[%clk 0:01:33.7]} 22.
Rxa5 {[%clk 0:01:40.2]} 22... Ra8 {[%clk 0:01:34]} 23. Rea1 {[%clk 0:01:40.4]}
23... Rxa5 {[%clk 0:01:30.4]} 24. Rxa5 {[%clk 0:01:41.3]} 24... Rb8 {[%clk
0:01:30.8]} 25. Ra7 {[%clk 0:01:38.4]} 25... Nb6 {[%clk 0:01:26.9]} 26. Kg2
{[%clk 0:01:12.9]} 26... b3 {[%clk 0:01:24.1]} 27. Ra3 {[%clk 0:01:10.3]} 27...
Nd7 {[%clk 0:00:56]} 28. Kf3 {[%clk 0:00:59.1]} 28... Rb4 {[%clk 0:00:55.7]} 29.
Ke3 {[%clk 0:00:51.8]} 29... Nb6 {[%clk 0:00:54.2]} 30. Kd2 {[%clk 0:00:30.1]}
30... Nxc4+ {[%clk 0:00:49.9]} 31. Kc3 {[%clk 0:00:30.6]} 31... Nxa3 {[%clk
0:00:50]} 32. Kxb4 {[%clk 0:00:30.3]} 32... Nc2+ {[%clk 0:00:49.8]} 33. Kc3
{[%clk 0:00:30.4]} 33... Ne1 {[%clk 0:00:46.7]} 34. Be4 {[%clk 0:00:20]} 34...
d5 {[%clk 0:00:47.1]} 35. Bb1 {[%clk 0:00:16.6]} 35... Ng2 {[%clk 0:00:44.1]}
36. f5 {[%clk 0:00:14.6]} 36... exf5 {[%clk 0:00:44.1]} 37. Kxb3 {[%clk
0:00:15.5]} 37... Nh4 {[%clk 0:00:43]} 38. Kb4 {[%clk 0:00:13.9]} 38... Nf3
{[%clk 0:00:40.8]} 39. Kc5 {[%clk 0:00:14.8]} 39... Nxh2 {[%clk 0:00:41]} 40. b4
{[%clk 0:00:15.3]} 40... Ng4 {[%clk 0:00:28.6]} 41. b5 {[%clk 0:00:15.4]} 41...
Kg5 {[%clk 0:00:27.7]} 42. b6 {[%clk 0:00:13.6]} 42... Nf6 {[%clk 0:00:28.3]}
43. Kc6 {[%clk 0:00:12.5]} 43... h5 {[%clk 0:00:26.6]} 44. b7 {[%clk 0:00:12.9]}
44... h4 {[%clk 0:00:27.5]} 45. b8=Q {[%clk 0:00:13.8]} 45... Ng4 {[%clk
0:00:25.5]} 46. Qd8+ {[%clk 0:00:09.3]} 46... f6 {[%clk 0:00:23.8]} 47. Qxd5
{[%clk 0:00:09]} 47... g6 {[%clk 0:00:24.5]} 48. Qg2 {[%clk 0:00:07.7]} 48...
Kf4 {[%clk 0:00:23.1]} 49. d5 {[%clk 0:00:07.7]} 49... g5 {[%clk 0:00:20.7]} 50.
d6 {[%clk 0:00:07.8]} 50... Ne5+ {[%clk 0:00:20.9]} 51. Kc7 {[%clk 0:00:08.3]}
51... g4 {[%clk 0:00:21.8]} 52. d7 {[%clk 0:00:08.5]} 52... h3 {[%clk
0:00:22.5]} 53. Qg3+ {[%clk 0:00:08.5]} 53... Kg5 {[%clk 0:00:23.1]} 54. d8=Q
{[%clk 0:00:09.4]} 1-0

[Event "Early-Titled-Tuesday-Blitz-February-06-2024"]
[Site "Chess.com"]
[Date "2024.02.06"]
[Round "1"]
[White "Nasrin_Babayeva"]
[Black "JuniorJumper"]
[Result "0-1"]
[WhiteElo "1911"]
[BlackElo "2534"]
[TimeControl "180+1"]
[EndTime "8:07:49 PST"]
[Termination "JuniorJumper won by resignation"]

1. c4 {[%clk 0:03:00.9]} 1... e5 {[%clk 0:02:57.9]} 2. g3 {[%clk 0:03:01.1]}
2... Nf6 {[%clk 0:02:56.7]} 3. Bg2 {[%clk 0:03:01.4]} 3... d5 {[%clk 0:02:56.9]}
4. cxd5 {[%clk 0:03:00.9]} 4... Nxd5 {[%clk 0:02:45]} 5. Nf3 {[%clk 0:03:01.8]}
5... Nc6 {[%clk 0:02:44.5]} 6. O-O {[%clk 0:03:00.7]} 6... Be7 {[%clk 0:02:43]}
7. d3 {[%clk 0:02:55.1]} 7... O-O {[%clk 0:02:42.2]} 8. Nc3 {[%clk 0:02:54.7]}
8... Nb6 {[%clk 0:02:41.8]} 9. Be3 {[%clk 0:02:52.7]} 9... Be6 {[%clk
0:02:40.1]} 10. a3 {[%clk 0:02:49.1]} 10... a5 {[%clk 0:02:39.8]} 11. Na4 {[%clk
0:02:33.6]} 11... Nd5 {[%clk 0:02:21.1]} 12. Bc5 {[%clk 0:02:27.6]} 12... f6
{[%clk 0:01:30]} 13. Rc1 {[%clk 0:02:06.8]} 13... Bf7 {[%clk 0:01:26]} 14. Bxe7
{[%clk 0:02:00.8]} 14... Qxe7 {[%clk 0:01:26.8]} 15. Nc5 {[%clk 0:01:59.6]}
15... b6 {[%clk 0:01:09.1]} 16. Ne4 {[%clk 0:01:33.2]} 16... Nd4 {[%clk
0:01:07.4]} 17. Nc3 {[%clk 0:01:22.7]} 17... Nxc3 {[%clk 0:00:49.8]} 18. Rxc3
{[%clk 0:01:06.4]} 18... Rad8 {[%clk 0:00:49.6]} 19. e3 {[%clk 0:00:52.9]} 19...
Nb5 {[%clk 0:00:44.4]} 20. Rc1 {[%clk 0:00:48.9]} 20... e4 {[%clk 0:00:44.7]}
21. Nd2 {[%clk 0:00:42.5]} 21... Rxd3 {[%clk 0:00:38.3]} 22. Bxe4 {[%clk
0:00:34.1]} 22... Rxd2 {[%clk 0:00:38.1]} 23. Bxh7+ {[%clk 0:00:28.2]} 23...
Kxh7 {[%clk 0:00:39]} 24. Qxd2 {[%clk 0:00:28.6]} 24... Rd8 {[%clk 0:00:37.2]}
25. Qc2+ {[%clk 0:00:27.4]} 25... Bg6 {[%clk 0:00:30.2]} 26. Qc6 {[%clk
0:00:25.3]} 26... Be8 {[%clk 0:00:23.3]} 27. Qf3 {[%clk 0:00:23.3]} 27... c5
{[%clk 0:00:15.8]} 28. Rfd1 {[%clk 0:00:22.2]} 28... Nd6 {[%clk 0:00:14]} 29.
Qg2 {[%clk 0:00:20.3]} 29... Bg6 {[%clk 0:00:12.1]} 30. Qh3+ {[%clk 0:00:20.1]}
30... Kg8 {[%clk 0:00:11.7]} 31. Qg2 {[%clk 0:00:20.5]} 31... Be4 {[%clk
0:00:11.7]} 32. f3 {[%clk 0:00:20.9]} 32... Bc6 {[%clk 0:00:11.6]} 33. e4 {[%clk
0:00:21.6]} 33... Nb5 {[%clk 0:00:11.4]} 34. Rxd8+ {[%clk 0:00:21]} 34... Qxd8
{[%clk 0:00:11.9]} 35. Qf2 {[%clk 0:00:21.2]} 35... Nd4 {[%clk 0:00:12]} 36. Rd1
{[%clk 0:00:20.7]} 36... Ba4 {[%clk 0:00:12]} 37. Rd2 {[%clk 0:00:20.2]} 37...
Nxf3+ {[%clk 0:00:11.7]} 38. Qxf3 {[%clk 0:00:20]} 38... Qxd2 {[%clk 0:00:12.2]}
39. Qc3 {[%clk 0:00:18.5]} 39... Qxc3 {[%clk 0:00:11.6]} 40. bxc3 {[%clk
0:00:18.9]} 40... Kf7 {[%clk 0:00:11.1]} 41. Kf2 {[%clk 0:00:19.2]} 41... Ke6
{[%clk 0:00:12]} 42. Ke3 {[%clk 0:00:19.9]} 42... Ke5 {[%clk 0:00:12.6]} 43. h4
{[%clk 0:00:19.8]} 43... Bd7 {[%clk 0:00:13.3]} 44. Kf3 {[%clk 0:00:19]} 44...
Bc6 {[%clk 0:00:13.2]} 45. Ke3 {[%clk 0:00:18.9]} 45... Bxe4 {[%clk 0:00:14.1]}
46. g4 {[%clk 0:00:19.4]} 46... Bh7 {[%clk 0:00:13.9]} 0-1

[Event "Early-Titled-Tuesday-Blitz-February-06-2024"]
[Site "Chess.com"]
[Date "2024.02.06"]
[Round "1"]
[White "Capablanca_Oujda_2021"]
[Black "Eagle_2019"]
[Result "0-1"]
[WhiteElo "2462"]
[BlackElo "2850"]
[TimeControl "180+1"]
[EndTime "8:07:51 PST"]
[Termination "Eagle_2019 won on time"]

1. e4 {[%clk 0:02:59.5]} 1... c5 {[%clk 0:02:56.1]} 2. Nf3 {[%clk 0:02:59.3]}
2... Nc6 {[%clk 0:02:55.7]} 3. d4 {[%clk 0:02:59.4]} 3... cxd4 {[%clk
0:02:55.6]} 4. Nxd4 {[%clk 0:03:00.3]} 4... Nf6 {[%clk 0:02:55.5]} 5. Nc3 {[%clk
0:02:59.5]} 5... e6 {[%clk 0:02:55.6]} 6. Nb3 {[%clk 0:02:55.1]} 6... Bb4 {[%clk
0:02:54.7]} 7. Bd3 {[%clk 0:02:54.9]} 7... d5 {[%clk 0:02:52.7]} 8. exd5 {[%clk
0:02:53.1]} 8... Nxd5 {[%clk 0:02:52.3]} 9. O-O {[%clk 0:02:49.3]} 9... Nxc3
{[%clk 0:02:46.5]} 10. bxc3 {[%clk 0:02:50.2]} 10... Bxc3 {[%clk 0:02:47.2]} 11.
Ba3 {[%clk 0:02:48.4]} 11... Bxa1 {[%clk 0:01:47.8]} 12. Qxa1 {[%clk 0:02:49.3]}
12... f6 {[%clk 0:01:45.8]} 13. Rd1 {[%clk 0:02:08.9]} 13... Qc7 {[%clk
0:01:34.7]} 14. Nd4 {[%clk 0:01:58.1]} 14... Nxd4 {[%clk 0:01:24.3]} 15. Qxd4
{[%clk 0:01:59]} 15... Bd7 {[%clk 0:01:24.8]} 16. Bd6 {[%clk 0:01:50.4]} 16...
Qa5 {[%clk 0:01:18.9]} 17. Bb4 {[%clk 0:01:19]} 17... Qd5 {[%clk 0:01:13.4]} 18.
Qh4 {[%clk 0:01:15.7]} 18... O-O-O {[%clk 0:01:09.6]} 19. Qg3 {[%clk 0:01:07.9]}
19... Bc6 {[%clk 0:01:01.7]} 20. Re1 {[%clk 0:00:43.9]} 20... Rd7 {[%clk
0:00:54.6]} 21. a4 {[%clk 0:00:40.8]} 21... g5 {[%clk 0:00:44.2]} 22. a5 {[%clk
0:00:29.8]} 22... h5 {[%clk 0:00:36.9]} 23. Bf1 {[%clk 0:00:26.3]} 23... h4
{[%clk 0:00:35.1]} 24. Qc3 {[%clk 0:00:24.6]} 24... h3 {[%clk 0:00:30.2]} 25.
Qxf6 {[%clk 0:00:23.3]} 25... Rh4 {[%clk 0:00:30.1]} 26. Bc3 {[%clk 0:00:12.8]}
26... hxg2 {[%clk 0:00:27.1]} 27. Bd3 {[%clk 0:00:11.1]} 27... Rf4 {[%clk
0:00:25.4]} 28. Qh8+ {[%clk 0:00:10.8]} 28... Rd8 {[%clk 0:00:23.9]} 29. Qg7
{[%clk 0:00:10.6]} 29... Qf3 {[%clk 0:00:22.2]} 30. Re2 {[%clk 0:00:09.8]} 30...
Rxd3 {[%clk 0:00:20.2]} 31. cxd3 {[%clk 0:00:06.8]} 31... Qxe2 {[%clk
0:00:17.9]} 32. Qg8+ {[%clk 0:00:06.8]} 32... Kd7 {[%clk 0:00:14.3]} 33. Qg7+
{[%clk 0:00:07]} 33... Kd8 {[%clk 0:00:13.2]} 34. Bf6+ {[%clk 0:00:06.4]} 34...
Rxf6 {[%clk 0:00:12.9]} 35. Qxf6+ {[%clk 0:00:06.6]} 35... Kd7 {[%clk
0:00:13.3]} 36. Qg7+ {[%clk 0:00:06]} 36... Kd6 {[%clk 0:00:13.6]} 37. Qd4+
{[%clk 0:00:06.4]} 37... Bd5 {[%clk 0:00:13.4]} 38. Qb4+ {[%clk 0:00:06.7]}
38... Ke5 {[%clk 0:00:13.1]} 39. Qc3+ {[%clk 0:00:05.3]} 39... Kf5 {[%clk
0:00:13]} 40. Qc1 {[%clk 0:00:03.2]} 40... Qxd3 {[%clk 0:00:13.1]} 41. h3 {[%clk
0:00:02.5]} 41... b5 {[%clk 0:00:12.1]} 42. axb6 {[%clk 0:00:02.2]} 42... axb6
{[%clk 0:00:12.3]} 43. Kh2 {[%clk 0:00:02.5]} 43... Qe4 {[%clk 0:00:10.3]} 0-1